fUST/lending_fUST_20250825
["ID","MTS","AMOUNT","RATE_DAILY","PERIOD"]
[381138434,1756068644516,-223.340255,0.000389,30]
[381138435,1756068644525,-630.704233,0.000389,30]
[381138436,1756068644534,-630.704233,0.000389,30]
[381138437,1756068644543,-630.704233,0.000389,30]
[381138438,1756068644552,-630.704233,0.000389,30]
[381138439,1756068644561,-151.0,0.000389,30]
[381138440,1756068644571,-151.0,0.000389,30]
[381138441,1756068644580,-151.0,0.000389,30]
[381138442,1756068644589,-151.0,0.000389,30]
[381138443,1756068644600,-151.0,0.000389,30]
[381138444,1756068644609,-151.0,0.000389,30]
[381138445,1756068644618,-151.0,0.000389,30]
[381138446,1756068644627,-151.0,0.000389,30]
[381138447,1756068644637,-151.0,0.000389,30]
[381138448,1756068644646,-151.0,0.000389,30]
[381138449,1756068644667,-151.0,0.000389,30]
[381138450,1756068644677,-390.994999,0.000389,30]
[381138451,1756068644686,-390.994999,0.000389,30]
[381138452,1756068644696,-1497.98812,0.000389,30]
[381138453,1756068644706,-390.994999,0.000389,30]
[381138454,1756068644716,-390.994999,0.000389,30]
[381138455,1756068644726,-1497.98812,0.000389,30]
[381138456,1756068644735,-1497.98812,0.000389,30]
[381138457,1756068644745,-1497.98812,0.000389,30]
[381138458,1756068644755,-3857.61,0.00039,7]
[381138459,1756068644765,-218.36867267,0.00039,10]
[381138460,1756068644775,-160.0,0.00039,30]
[381138461,1756068644784,-376.22310801,0.00039,30]
[381138462,1756068644794,-844.67759735,0.00039,30]
[381138463,1756068644804,-500.0,0.00039452,120]
[381138464,1756068644813,-500.0,0.00039453,7]
[381138465,1756068644823,-10300.22988232,0.00039627,10]
[381138466,1756068644833,-151.407558,0.00039627,30]
[381138467,1756068644844,-151.0,0.00039627,30]
[381138468,1756068644854,-151.0,0.00039627,30]
[381138469,1756068644864,-269.512267,0.00039627,15]
[381138470,1756068644875,-269.512267,0.00039627,15]
[381138471,1756068644884,-269.512267,0.00039627,15]
[381138472,1756068644894,-269.512267,0.00039627,15]
[381138473,1756068644903,-284.24196,0.00039627,30]
[381138474,1756068644912,-151.0,0.00039627,30]
[381138475,1756068644922,-151.0,0.00039627,30]
[381138476,1756068644931,-151.0,0.00039627,30]
[381138477,1756068644941,-324.074455,0.00039654,2]
[381138478,1756068644950,-200.29767262,0.00039755,34]
[381138479,1756068644960,-647.66914228,0.00039957,8]
[381138480,1756068644970,-80276.18064373,0.0004,30]
[381138481,1756068644979,-160.0,0.0004,10]
[381138482,1756068644989,-376.22310801,0.0004,10]
[381138483,1756068644999,-844.67759735,0.0004,10]
[381138484,1756068645008,-844.67759735,0.0004,30]
[381138485,1756068645018,-5205.84,0.000402,14]
[381138486,1756068645028,-200.0,0.000405,120]
[381138487,1756068645038,-236.33244,0.000405,120]
[381138488,1756068645052,-200.0,0.000405,120]
[381138489,1756068645062,-231.01721,0.000405,30]
[381138490,1756068645071,-151.0,0.000405,30]
[381138491,1756068645082,-151.0,0.000405,30]
[381138492,1756068645093,-151.0,0.000405,30]
[381138493,1756068645103,-151.0,0.00040559,30]
[381138494,1756068645113,-154.764557,0.00040559,30]
[381138495,1756068645122,-154.764557,0.00040559,30]
[381138496,1756068645132,-154.764557,0.00040559,30]
[381138497,1756068645142,-154.764557,0.00040559,30]
[381138498,1756068645151,-151.0,0.000407,120]
[381138499,1756068645161,-671.166324,0.00040958,2]
[381138500,1756068645170,-548.134039,0.00041015,2]
[381138501,1756068645180,-500.0,0.00041095,120]
[381138502,1756068645189,-500.0,0.00041096,31]
[381138503,1756068645200,-311.23122387,0.00041096,31]
[381138504,1756068645210,-14108.9,0.000411,14]
[381138505,1756068645220,-200.29767262,0.00041482,37]
[381138506,1756068645230,-169.08,0.000417,14]
[381138507,1756068645240,-1318.0,0.00041772,5]
[381138508,1756068645249,-250.0,0.00041777,2]
[381138509,1756068645259,-250.0,0.00041777,2]
[381138510,1756068645268,-250.0,0.00041777,2]
[381138511,1756068645278,-277.0,0.00042,19]
[381138512,1756068645287,-1000.0,0.00042465,15]
[381138513,1756068645297,-3857.61,0.000425,7]
[381138514,1756068645307,-500.0,0.00042739,120]
[381138515,1756068645316,-200.0,0.000428,120]
[381138516,1756068645325,-500.0,0.00043101,30]
[381138517,1756068645335,-200.29767262,0.00043208,41]
[381138518,1756068645344,-289.974,0.00043828,2]
[381138519,1756068645355,-907.21025597,0.00043835,120]
[381138520,1756068645364,-151.0,0.00044,120]
[381138521,1756068645373,-500.0,0.00044383,120]
[381138522,1756068645383,-200.29767262,0.00044935,45]
[381138523,1756068645393,-278.0,0.00045,120]
[381138524,1756068645403,-5000.07,0.00045,120]
[381138525,1756068645413,-151.0,0.00045,120]
[381138526,1756068645423,-151.0,0.00045,120]
[381138527,1756068645433,-151.0,0.00045,120]
[381138528,1756068645443,-151.0,0.00045,120]
[381138529,1756068645455,-151.0,0.00045,120]
[381138530,1756068645465,-151.0,0.00045,120]
[381138531,1756068645475,-151.452376,0.00045,120]
[381138532,1756068645485,-151.0,0.00045,120]
[381138533,1756068645495,-151.0,0.00045,120]
[381138534,1756068645504,-312.569554,0.00045,120]
[381138535,1756068645514,-312.569554,0.00045,120]
[381138536,1756068645523,-312.569554,0.00045,120]
[381138537,1756068645532,-312.569554,0.00045,120]
[381138538,1756068645542,-151.0,0.00045,120]
[381138539,1756068645551,-151.0,0.00045,120]
[381138540,1756068645561,-151.0,0.00045,120]
[381138541,1756068645570,-179.26104,0.00045,120]
[381138542,1756068645579,-300.912384,0.00045,120]
[381138543,1756068645588,-151.0,0.00045,120]
[381138544,1756068645599,-160.658675,0.00045,120]
[381138545,1756068645608,-160.658675,0.00045,120]
[381138546,1756068645618,-160.658675,0.00045,120]
[381138547,1756068645627,-151.0,0.00045,120]
[381138548,1756068645637,-151.0,0.00045,120]
[381138549,1756068645646,-160.658675,0.00045,120]
[381138550,1756068645655,-151.0,0.00045,120]
[381138551,1756068645665,-151.0,0.00045,120]
[381138552,1756068645674,-151.0,0.00045,120]
[381138553,1756068645684,-151.0,0.00045,120]
[381138554,1756068645693,-151.0,0.00045,120]
[381138555,1756068645702,-151.0,0.00045,120]
[381138556,1756068645712,-151.0,0.00045,120]
[381138557,1756068645721,-151.699238,0.00045,120]
[381138558,1756068645730,-160.0,0.00045,120]
[381138559,1756068645739,-844.67759735,0.00045,120]
[381138560,1756068645749,-200.0,0.000451,120]
[381138561,1756068645758,-637.37877658,0.00046027,120]
[381138562,1756068645767,-160.0,0.00046134,3]
[381138564,1756068645776,-324.074455,0.00046143,2]
[381138565,1756068645785,-200.0,0.00046338,120]
[381138566,1756068645795,-3857.61,0.000465,7]
[381138567,1756068645804,-1000.0,0.00046575,120]
[381138568,1756068645813,-300.0,0.00046575,120]
[381138569,1756068645823,-1021.15,0.00046602,120]
[381138571,1756068645832,-153.007926,0.00046707,120]
[381138573,1756068645841,-153.007926,0.00046707,120]
[381138574,1756068645850,-153.007926,0.00046707,120]
[381138575,1756068645860,-153.007926,0.00046707,120]
[381138576,1756068645869,-160.37027,0.00046707,120]
[381138577,1756068645879,-160.37027,0.00046707,120]
[381138578,1756068645888,-160.37027,0.00046707,120]
[381138579,1756068645897,-160.37027,0.00046707,120]
[381138580,1756068645907,-151.0,0.00046707,120]
[381138582,1756068645916,-151.0,0.00046707,120]
[381138583,1756068645925,-151.0,0.00046707,120]
[381138584,1756068645935,-151.0,0.00046707,120]
[381138585,1756068645945,-151.0,0.000472,120]
[381138586,1756068645954,-199.0,0.00047397,30]
[381138587,1756068645964,-200.0,0.000474,120]
[381138588,1756068645973,-156.957592,0.00047512,2]
[381138589,1756068645983,-1194.0379739,0.00047605,120]
[381138590,1756068645992,-154.229761,0.00047614,7]
[381138591,1756068646001,-1000.0,0.00047999,120]
[381138592,1756068646011,-157.0,0.00048,90]
[381138593,1756068646020,-199.0,0.00048082,32]
[381138594,1756068646029,-500.0,0.00048105,30]
[381138595,1756068646040,-157.0,0.00048356,90]
[381138596,1756068646051,-14108.9,0.000484,14]
[381138597,1756068646059,-151.0,0.000484,120]
[381138598,1756068646069,-151.0,0.000484,120]
[381138599,1756068646078,-268.05364497,0.000485,120]
[381138600,1756068646089,-5205.84,0.000485,14]
[381138601,1756068646098,-702049.2114727,0.000485,30]
[381138602,1756068646108,-852.66998134,0.00048501,14]
[381138603,1756068646119,-800.0,0.00048601,14]
[381138604,1756068646129,-800.0,0.00048689,14]
[381138605,1756068646138,-800.0,0.0004876,14]
[381138606,1756068646147,-199.0,0.00048767,34]
[381138607,1756068646157,-154.229761,0.00048785,15]
[381138608,1756068646166,-1000.0,0.00048865,2]
[381138609,1756068646175,-3993.96,0.0004887,120]
[381138610,1756068646185,-800.0,0.00048894,14]
[381138611,1756068646194,-800.0,0.000489,120]
[381138612,1756068646203,-500.0,0.0004893,60]
[381138613,1756068646212,-1000.0,0.00048999,120]
[381138614,1756068646221,-7401.95984478,0.00049,120]
[381138615,1756068646230,-169.08,0.00049,14]
[381138616,1756068646239,-1500.0,0.00049041,120]
[381138617,1756068646248,-1231.56,0.00049041,120]
[381138618,1756068646257,-151.0,0.00049115,120]
[381138619,1756068646267,-151.0,0.00049115,14]
[381138620,1756068646276,-151.0,0.00049115,120]
[381138621,1756068646285,-151.0,0.00049115,120]
[381138622,1756068646294,-151.0,0.00049115,120]
[381138623,1756068646303,-151.0,0.00049115,120]
[381138624,1756068646312,-154.764557,0.00049115,120]
[381138625,1756068646321,-154.764557,0.00049115,120]
[381138626,1756068646330,-154.764557,0.00049115,120]
[381138627,1756068646339,-154.764557,0.00049115,120]
[381138628,1756068646348,-151.0,0.00049115,120]
[381138629,1756068646357,-256.892,0.00049115,120]
[381138630,1756068646368,-3857.61,0.000492,7]
[381138631,1756068646377,-500.0,0.00049239,18]
[381138633,1756068646564,-500.0,0.00049262,18]
[381138634,1756068646616,-1338.92398812,0.00049278,76]
[381138635,1756068646626,-400.0,0.0004929,2]
[381138636,1756068646635,-10300.22988232,0.000493,10]
[381138637,1756068646644,-7675.72100964,0.000493,2]
[381138638,1756068646654,-151.0,0.00049315,14]
[381138639,1756068646664,-500.0,0.00049315,120]
[381138640,1756068646673,-500.0,0.00049315,120]
[381138641,1756068646682,-500.0,0.00049315,120]
[381138642,1756068646692,-500.0,0.00049315,120]
[381138643,1756068646701,-195.75744067,0.00049315,120]
[381138644,1756068646710,-153.432833,0.00049315,120]
[381138645,1756068646719,-241.469457,0.00049315,120]
[381138646,1756068646729,-151.0,0.00049315,120]
[381138647,1756068646739,-151.0,0.00049315,120]
[381138648,1756068646747,-154.764557,0.00049315,120]
[381138649,1756068646756,-154.764557,0.00049315,120]
[381138650,1756068646765,-154.764557,0.00049315,120]
[381138651,1756068646774,-154.764557,0.00049315,120]
[381138652,1756068646783,-151.0,0.00049315,120]
[381138653,1756068646792,-151.0,0.00049315,120]
[381138654,1756068646801,-151.0,0.00049315,120]
[381138655,1756068646811,-151.0,0.00049315,120]
[381138656,1756068646820,-153.007926,0.00049315,120]
[381138657,1756068646829,-153.007926,0.00049315,120]
[381138658,1756068646839,-153.007926,0.00049315,120]
[381138659,1756068646848,-153.007926,0.00049315,120]
[381138660,1756068646857,-160.37027,0.00049315,120]
[381138661,1756068646867,-500.0,0.00049315,120]
[381138662,1756068646876,-500.0,0.00049315,120]
[381138663,1756068646885,-500.0,0.00049315,120]
[381138664,1756068646894,-453.90997104,0.00049315,120]
[381138665,1756068646903,-160.37027,0.00049315,120]
[381138666,1756068646912,-160.37027,0.00049315,120]
[381138667,1756068646921,-160.37027,0.00049315,120]
[381138668,1756068646930,-151.0,0.00049315,120]
[381138669,1756068646940,-151.0,0.00049315,120]
[381138670,1756068646950,-151.0,0.00049315,120]
[381138671,1756068646959,-312.569554,0.00049315,120]
[381138672,1756068646968,-312.569554,0.00049315,120]
[381138673,1756068646978,-312.569554,0.00049315,120]
[381138674,1756068646987,-312.569554,0.00049315,120]
[381138675,1756068646997,-151.0,0.00049315,120]
[381138676,1756068647007,-151.0,0.00049315,120]
[381138677,1756068647017,-151.0,0.00049315,120]
[381138678,1756068647027,-151.0,0.00049315,120]
[381138679,1756068647038,-196.246994,0.00049315,120]
[381138680,1756068647053,-151.0,0.00049315,120]
[381138681,1756068647063,-151.0,0.00049315,120]
[381138682,1756068647073,-253.921792,0.00049315,120]
[381138683,1756068647083,-160.658675,0.00049315,120]
[381138684,1756068647095,-160.658675,0.00049315,120]
[381138685,1756068647105,-160.658675,0.00049315,120]
[381138686,1756068647115,-151.0,0.00049315,120]
[381138687,1756068647124,-151.0,0.00049315,120]
[381138688,1756068647134,-160.658675,0.00049315,120]
[381138689,1756068647144,-151.0,0.00049315,120]
[381138690,1756068647153,-151.0,0.00049315,120]
[381138691,1756068647163,-151.0,0.00049315,120]
[381138692,1756068647172,-151.0,0.00049315,120]
[381138693,1756068647182,-151.0,0.00049315,120]
[381138694,1756068647191,-155.006395,0.00049315,120]
[381138695,1756068647201,-1000.0,0.00049315,120]
[381138696,1756068647211,-609.32551782,0.00049315,120]
[381138697,1756068647221,-151.0,0.00049315,30]
[381138698,1756068647231,-151.0,0.00049315,120]
[381138699,1756068647240,-151.0,0.00049315,120]
[381138700,1756068647249,-162.425812,0.00049315,120]
[381138701,1756068647259,-151.0,0.00049315,120]
[381138702,1756068647269,-151.0,0.00049315,120]
[381138703,1756068647280,-151.0,0.00049315,120]
[381138704,1756068647289,-151.0,0.00049315,120]
[381138705,1756068647299,-151.0,0.00049315,120]
[381138706,1756068647308,-151.0,0.00049315,120]
[381138707,1756068647318,-151.0,0.00049315,120]
[381138708,1756068647328,-151.0,0.00049315,30]
[381138709,1756068647337,-151.0,0.00049315,120]
[381138710,1756068647347,-233.734865,0.00049315,120]
[381138711,1756068647356,-233.734865,0.00049315,120]
[381138712,1756068647366,-233.734865,0.00049315,120]
[381138713,1756068647375,-233.734865,0.00049315,120]
[381138714,1756068647385,-151.0,0.00049315,120]
[381138715,1756068647394,-163.353797,0.00049315,120]
[381138716,1756068647404,-163.353797,0.00049315,120]
[381138717,1756068647414,-163.353797,0.00049315,120]
[381138718,1756068647424,-151.0,0.00049315,120]
[381138719,1756068647434,-163.353797,0.00049315,120]
[381138720,1756068647444,-151.0,0.00049315,120]
[381138721,1756068647453,-1000.0,0.00049315,120]
[381138722,1756068647463,-1000.0,0.00049315,120]
[381138723,1756068647472,-1000.0,0.00049315,120]
[381138724,1756068647482,-1000.0,0.00049315,120]
[381138725,1756068647491,-1000.0,0.00049315,120]
[381138726,1756068647501,-1000.0,0.00049315,120]
[381138727,1756068647511,-1000.0,0.00049315,120]
[381138728,1756068647521,-266.25644,0.00049315,120]
[381138729,1756068647530,-1000.0,0.00049315,120]
[381138730,1756068647539,-1000.0,0.00049315,120]
[381138731,1756068647550,-1000.0,0.00049315,120]
[381138732,1756068647559,-1000.0,0.00049315,120]
[381138733,1756068647568,-1000.0,0.00049315,120]
[381138734,1756068647578,-266.25644,0.00049315,120]
[381138735,1756068647587,-1000.0,0.00049315,120]
[381138736,1756068647597,-1000.0,0.00049315,120]
[381138737,1756068647606,-1000.0,0.00049315,120]
[381138738,1756068647616,-1000.0,0.00049315,120]
[381138739,1756068647625,-266.25644,0.00049315,120]
[381138740,1756068647635,-1000.0,0.00049315,120]
[381138741,1756068647645,-1000.0,0.00049315,120]
[381138742,1756068647660,-1000.0,0.00049315,120]
[381138743,1756068647670,-1000.0,0.00049315,120]
[381138744,1756068647679,-1000.0,0.00049315,120]
[381138745,1756068647691,-266.25644,0.00049315,120]
[381138747,1756068647700,-1000.0,0.00049315,120]
[381138749,1756068647710,-1000.0,0.00049315,120]
[381138751,1756068647719,-1000.0,0.00049315,120]
[381138752,1756068647728,-151.0,0.00049315,120]
[381138754,1756068647738,-1000.0,0.00049315,120]
[381138756,1756068647748,-1000.0,0.00049315,120]
[381138757,1756068647758,-151.0,0.00049315,120]
[381138758,1756068647767,-1000.0,0.00049315,120]
[381138760,1756068647777,-1000.0,0.00049315,120]
[381138761,1756068647786,-151.0,0.00049315,120]
[381138762,1756068647796,-1000.0,0.00049315,120]
[381138763,1756068647805,-1000.0,0.00049315,120]
[381138764,1756068647814,-1000.0,0.00049315,120]
[381138766,1756068647824,-1000.0,0.00049315,120]
[381138767,1756068647837,-151.0,0.00049315,120]
[381138768,1756068647847,-1000.0,0.00049315,120]
[381138769,1756068647856,-1000.0,0.00049315,120]
[381138770,1756068647865,-1000.0,0.00049315,120]
[381138771,1756068647875,-1000.0,0.00049315,120]
[381138772,1756068647884,-1000.0,0.00049315,120]
[381138773,1756068647893,-1000.0,0.00049315,120]
[381138774,1756068647903,-1000.0,0.00049315,120]
[381138775,1756068647913,-810.945368,0.00049315,120]
[381138776,1756068647922,-241.736049,0.00049315,120]
[381138777,1756068647932,-151.0,0.00049315,120]
[381138778,1756068647941,-241.736049,0.00049315,120]
[381138779,1756068647951,-241.736049,0.00049315,120]
[381138780,1756068647961,-241.736049,0.00049315,120]
[381138781,1756068647970,-151.0,0.00049315,120]
[381138782,1756068647979,-151.0,0.00049315,120]
[381138783,1756068647989,-151.0,0.00049315,120]
[381138784,1756068647998,-151.0,0.00049315,120]
[381138785,1756068648008,-151.0,0.00049315,120]
[381138786,1756068648017,-151.0,0.00049315,120]
[381138787,1756068648027,-151.0,0.00049315,120]
[381138788,1756068648036,-367.790494,0.00049315,120]
[381138789,1756068648050,-567.367118,0.00049315,120]
[381138790,1756068648059,-367.790494,0.00049315,120]
[381138791,1756068648069,-567.367118,0.00049315,120]
[381138792,1756068648079,-367.790494,0.00049315,120]
[381138793,1756068648089,-567.367118,0.00049315,120]
[381138794,1756068648099,-367.790494,0.00049315,120]
[381138795,1756068648109,-567.367118,0.00049315,120]
[381138796,1756068648120,-151.0,0.00049315,120]
[381138797,1756068648129,-151.0,0.00049315,120]
[381138798,1756068648139,-151.0,0.00049315,120]
[381138799,1756068648149,-423.645617,0.00049315,120]
[381138800,1756068648159,-151.0,0.00049315,120]
[381138801,1756068648168,-423.645617,0.00049315,120]
[381138802,1756068648178,-423.645617,0.00049315,120]
[381138803,1756068648188,-423.645617,0.00049315,120]
[381138804,1756068648199,-256.454979,0.00049315,120]
[381138805,1756068648209,-256.454979,0.00049315,120]
[381138806,1756068648218,-382.279792,0.00049315,120]
[381138807,1756068648228,-256.454979,0.00049315,120]
[381138808,1756068648238,-382.279792,0.00049315,120]
[381138809,1756068648247,-256.454979,0.00049315,120]
[381138810,1756068648258,-382.279792,0.00049315,120]
[381138811,1756068648267,-382.279792,0.00049315,120]
[381138812,1756068648277,-151.0,0.00049315,120]
[381138813,1756068648286,-151.0,0.00049315,120]
[381138814,1756068648296,-151.0,0.00049315,120]
[381138815,1756068648306,-949.174368,0.00049315,120]
[381138816,1756068648316,-949.174368,0.00049315,120]
[381138817,1756068648327,-949.174368,0.00049315,120]
[381138818,1756068648341,-949.174368,0.00049315,120]
[381138819,1756068648362,-151.0,0.00049315,120]
[381138820,1756068648382,-151.0,0.00049315,120]
[381138821,1756068648404,-630.704233,0.00049315,30]
[381138822,1756068648422,-630.704233,0.00049315,30]
[381138823,1756068648432,-630.704233,0.00049315,30]
[381138824,1756068648442,-630.704233,0.00049315,30]
[381138825,1756068648451,-151.0,0.00049315,120]
[381138826,1756068648460,-151.0,0.00049315,120]
[381138827,1756068648471,-151.0,0.00049315,120]
[381138828,1756068648480,-151.0,0.00049315,120]
[381138829,1756068648490,-151.0,0.00049315,120]
[381138830,1756068648500,-151.0,0.00049315,120]
[381138831,1756068648510,-151.0,0.00049315,120]
[381138832,1756068648519,-151.0,0.00049315,120]
[381138833,1756068648529,-151.0,0.00049315,120]
[381138834,1756068648538,-194.994437,0.00049315,120]
[381138835,1756068648548,-151.0,0.00049315,120]
[381138836,1756068648557,-151.0,0.00049315,120]
[381138837,1756068648566,-269.512267,0.00049315,15]
[381138838,1756068648575,-269.512267,0.00049315,15]
[381138839,1756068648585,-269.512267,0.00049315,15]
[381138840,1756068648594,-269.512267,0.00049315,15]
[381138841,1756068648604,-7935.51,0.00049315,120]
[381138842,1756068648614,-7935.51,0.00049315,120]
[381138843,1756068648625,-7935.51,0.00049315,120]
[381138844,1756068648635,-151.0,0.00049315,120]
[381138845,1756068648645,-7935.51,0.00049315,120]
[381138846,1756068648654,-7935.51,0.00049315,120]
[381138847,1756068648663,-7935.51,0.00049315,120]
[381138848,1756068648673,-7935.51,0.00049315,120]
[381138849,1756068648682,-7935.51,0.00049315,120]
[381138850,1756068648692,-151.0,0.00049315,120]
[381138851,1756068648701,-7935.51,0.00049315,120]
[381138852,1756068648711,-7935.51,0.00049315,120]
[381138853,1756068648721,-7935.51,0.00049315,120]
[381138854,1756068648731,-390.994999,0.00049315,120]
[381138855,1756068648740,-7935.51,0.00049315,120]
[381138856,1756068648750,-7935.51,0.00049315,120]
[381138857,1756068648760,-151.0,0.00049315,120]
[381138858,1756068648769,-7935.51,0.00049315,120]
[381138859,1756068648779,-7935.51,0.00049315,120]
[381138860,1756068648788,-7935.51,0.00049315,120]
[381138861,1756068648797,-390.994999,0.00049315,120]
[381138862,1756068648807,-7935.51,0.00049315,120]
[381138863,1756068648816,-7935.51,0.00049315,120]
[381138864,1756068648826,-7935.51,0.00049315,120]
[381138865,1756068648836,-7935.51,0.00049315,120]
[381138866,1756068648846,-7935.51,0.00049315,120]
[381138867,1756068648856,-7935.51,0.00049315,120]
[381138868,1756068648866,-1497.98812,0.00049315,120]
[381138869,1756068648876,-390.994999,0.00049315,120]
[381138870,1756068648886,-7935.51,0.00049315,120]
[381138871,1756068648895,-7935.73,0.00049315,120]
[381138872,1756068648905,-390.994999,0.00049315,120]
[381138873,1756068648915,-1497.98812,0.00049315,120]
[381138874,1756068648925,-1497.98812,0.00049315,120]
[381138875,1756068648934,-1497.98812,0.00049315,120]
[381138876,1756068648943,-300.0,0.00049315,120]
[381138877,1756068648953,-500.0,0.00049373,10]
[381138878,1756068648962,-326.0,0.0004939,30]
[381138879,1756068648972,-326.0,0.0004939,30]
[381138880,1756068648982,-326.0,0.0004939,30]
[381138881,1756068648992,-326.0,0.0004939,30]
[381138882,1756068649002,-326.0,0.0004939,30]
[381138883,1756068649012,-326.0,0.0004939,30]
[381138884,1756068649022,-326.0,0.0004939,30]
[381138885,1756068649032,-326.0,0.0004939,30]
[381138886,1756068649045,-326.0,0.0004939,30]
[381138887,1756068649056,-326.0,0.0004939,30]
[381138888,1756068649066,-326.0,0.0004939,30]
[381138889,1756068649076,-326.0,0.0004939,30]
[381138890,1756068649087,-326.0,0.0004939,30]
[381138891,1756068649097,-326.0,0.0004939,30]
[381138892,1756068649112,-326.0,0.0004939,30]
[381138893,1756068649123,-240.22133445,0.0004939,30]
[381138894,1756068649719,-85.77866555,0.0004939,30]
[381138895,1756068649728,-326.0,0.0004939,30]
[381138896,1756068649737,-326.0,0.0004939,30]
[381138897,1756068649747,-326.0,0.0004939,30]
[381138898,1756068649756,-326.0,0.0004939,30]
[381138899,1756068649765,-326.0,0.0004939,30]
[381138900,1756068649775,-326.0,0.0004939,30]
[381138901,1756068649784,-154.85382725,0.0004939,30]
[381138902,1756068649793,-200.0,0.00049399,60]
[381138903,1756068649803,-151.0,0.00049399,30]
[381138904,1756068649813,-151.0,0.00049399,120]
[381138905,1756068649822,-151.0,0.00049399,120]
[381138906,1756068649831,-151.0,0.00049399,120]
[381138907,1756068649841,-151.0,0.00049399,120]
[381138908,1756068649852,-151.0,0.00049399,120]
[381138909,1756068649862,-151.0,0.00049399,120]
[381138910,1756068649871,-151.0,0.00049399,120]
[381138911,1756068649880,-151.0,0.00049399,120]
[381138912,1756068649889,-151.0,0.00049399,120]
[381138913,1756068649899,-151.0,0.00049399,30]
[381138914,1756068649908,-233.734865,0.00049399,120]
[381138915,1756068649918,-233.734865,0.00049399,120]
[381138916,1756068649927,-233.734865,0.00049399,120]
[381138917,1756068649937,-233.734865,0.00049399,120]
[381138918,1756068649946,-151.0,0.00049399,120]
[381138919,1756068649955,-163.353797,0.00049399,120]
[381138920,1756068649965,-163.353797,0.00049399,120]
[381138921,1756068649975,-163.353797,0.00049399,120]
[381138922,1756068649984,-151.0,0.00049399,120]
[381138923,1756068649994,-163.353797,0.00049399,120]
[381138924,1756068650003,-151.0,0.00049399,120]
[381138925,1756068650012,-266.25644,0.00049399,120]
[381138926,1756068650022,-266.25644,0.00049399,120]
[381138927,1756068650031,-266.25644,0.00049399,120]
[381138928,1756068650042,-266.25644,0.00049399,120]
[381138929,1756068650054,-151.0,0.00049399,120]
[381138930,1756068650064,-151.0,0.00049399,120]
[381138931,1756068650073,-151.0,0.00049399,120]
[381138932,1756068650084,-151.0,0.00049399,120]
[381138933,1756068650094,-151.0,0.00049399,120]
[381138934,1756068650104,-165.290678,0.00049399,120]
[381138935,1756068650115,-151.0,0.00049399,120]
[381138936,1756068650127,-151.0,0.00049399,120]
[381138937,1756068650137,-151.0,0.00049399,120]
[381138938,1756068650147,-423.645617,0.00049399,120]
[381138939,1756068650156,-151.0,0.00049399,120]
[381138940,1756068650166,-423.645617,0.00049399,120]
[381138941,1756068650175,-423.645617,0.00049399,120]
[381138942,1756068650185,-423.645617,0.00049399,120]
[381138943,1756068650194,-256.454979,0.00049399,120]
[381138944,1756068650203,-256.454979,0.00049399,120]
[381138945,1756068650213,-382.279792,0.00049399,120]